lending/lending_fUSD_20250719
["ID","MTS","AMOUNT","RATE_DAILY","PERIOD"]
[373278413,1752927064992,-241.07873,0.00019506,2]
[373278414,1752927065001,-480.0,0.00019506,2]
[373278416,1752927065010,-8406.08,0.00019506,2]
[373278418,1752927065020,-241.07873,0.00019506,2]
[373278420,1752927065031,-480.0,0.00019506,2]
[373278422,1752927065040,-480.0,0.00019506,2]
[373278424,1752927065050,-420.0,0.00019506,2]
[373278426,1752927065059,-3098.53,0.00019506,2]
[373278428,1752927065069,-625.82,0.00019506,2]
[373278430,1752927065079,-480.0,0.00019506,2]
[373278433,1752927065089,-779.14,0.00019506,2]
[373278435,1752927065100,-151.0,0.00019506,2]
[373278436,1752927065110,-480.0,0.00019506,2]
[373278438,1752927065119,-480.0,0.00019506,2]
[373278440,1752927065129,-480.0,0.00019506,2]
[373278442,1752927065139,-480.0,0.00019506,2]
[373278444,1752927065148,-480.0,0.00019506,2]
[373278446,1752927065158,-151.772615,0.00019506,2]
[373278448,1752927065168,-480.0,0.00019506,2]
[373278451,1752927065178,-480.0,0.00019506,2]
[373278453,1752927065187,-480.0,0.00019506,2]
[373278455,1752927065197,-420.0,0.00019506,2]
[373278457,1752927065209,-480.0,0.00019506,2]
[373278459,1752927065219,-420.0,0.00019506,2]
[373278461,1752927065229,-151.0,0.00019506,2]
[373278463,1752927065238,-480.0,0.00019506,2]
[373278465,1752927065248,-480.0,0.00019506,2]
[373278467,1752927065258,-480.0,0.00019506,2]
[373278469,1752927065268,-4536.51,0.00019506,2]
[373278471,1752927065277,-482.89,0.00019506,2]
[373278473,1752927065287,-380.0,0.00019506,2]
[373278475,1752927065296,-480.0,0.00019506,2]
[373278477,1752927065306,-620.34,0.00019506,2]
[373278479,1752927065316,-480.0,0.00019506,2]
[373278481,1752927065326,-480.0,0.00019506,2]
[373278483,1752927065336,-1944.15,0.00019506,2]
[373278485,1752927065345,-480.0,0.00019506,2]
[373278487,1752927065355,-625.37,0.00019506,2]
[373278489,1752927065365,-480.0,0.00019506,2]
[373278491,1752927065375,-480.0,0.00019506,2]
[373278493,1752927065384,-480.0,0.00019506,2]
[373278495,1752927065394,-996.66,0.00019506,2]
[373278497,1752927065404,-480.0,0.00019506,2]
[373278499,1752927065414,-480.0,0.00019506,2]
[373278501,1752927065423,-480.0,0.00019506,2]
[373278503,1752927065434,-420.0,0.00019506,2]
[373278505,1752927065444,-480.0,0.00019506,2]
[373278508,1752927065456,-7262.97,0.00019506,2]
[373278510,1752927065467,-480.0,0.00019506,2]
[373278512,1752927065477,-480.0,0.00019506,2]
[373278514,1752927065488,-480.0,0.00019506,2]
[373278516,1752927065499,-480.0,0.00019506,2]
[373278518,1752927065509,-344.94,0.00019506,2]
[373278520,1752927065520,-480.0,0.00019506,2]
[373278522,1752927065530,-814.82,0.00019506,2]
[373278524,1752927065547,-480.0,0.00019506,2]
[373278526,1752927065557,-151.0,0.00019506,2]
[373278528,1752927065567,-814.36,0.00019506,2]
[373278530,1752927065578,-480.0,0.00019506,2]
[373278532,1752927065590,-400.0,0.00019506,2]
[373278534,1752927065601,-480.0,0.00019506,2]
[373278536,1752927065611,-495.52,0.00019506,2]
[373278538,1752927065622,-420.0,0.00019506,2]
[373278540,1752927065632,-861.88,0.00019506,2]
[373278542,1752927065642,-480.0,0.00019506,2]
[373278544,1752927065655,-480.0,0.00019506,2]
[373278547,1752927065666,-151.0,0.00019506,2]
[373278549,1752927065676,-480.0,0.00019506,2]
[373278551,1752927065685,-480.0,0.00019506,2]
[373278553,1752927065695,-152.323452,0.00019506,2]
[373278555,1752927065706,-945.47,0.00019506,2]
[373278557,1752927065716,-553.5,0.00019506,2]
[373278559,1752927065725,-480.0,0.00019506,2]
[373278561,1752927065735,-480.0,0.00019506,2]
[373278563,1752927065746,-480.0,0.00019506,2]
[373278565,1752927065755,-480.0,0.00019506,2]
[373278567,1752927065766,-519.08,0.00019506,2]
[373278569,1752927065776,-569.84,0.00019506,2]
[373278571,1752927065786,-480.0,0.00019506,2]
[373278573,1752927065795,-627.0,0.00019507,2]
[373278575,1752927065805,-500.0,0.00019515,2]
[373278577,1752927065815,-500.0,0.00019515,2]
[373278579,1752927065824,-3345.26,0.00019515,2]
[373278581,1752927065834,-500.0,0.00019515,2]
[373278583,1752927065844,-500.0,0.00019515,2]
[373278585,1752927065853,-12824.0932,0.00019516,2]
[373278587,1752927065863,-21809.27914375,0.00019516,2]
[373278616,1752927066253,-1042.42108382,0.00019516,2]
[373278617,1752927066265,-261.70620014,0.00019516,2]
[373278618,1752927066277,-536.20862287,0.00019516,2]
[373278619,1752927066289,-1516.83140813,0.00019516,2]
[373278620,1752927066301,-4277.44625369,0.00019516,2]
[373278621,1752927066313,-507.729999,0.00019516,2]
[373278622,1752927066325,-159261.8456886,0.00019516,2]
[373278623,1752927066335,-1500.0,0.00019516,2]
[373278624,1752927066345,-2500.0,0.00019516,2]
[373278626,1752927066354,-1000.0,0.00019516,2]
[373278628,1752927066364,-151.0,0.00019516,2]
[373278630,1752927066374,-151.0,0.00019516,2]
[373278632,1752927066383,-151.0,0.00019516,2]
[373278634,1752927066393,-151.0,0.00019516,2]
[373278636,1752927066404,-151.0,0.00019516,2]
[373278638,1752927066414,-269.645856,0.00019516,2]
[373278640,1752927066424,-151.0,0.00019516,2]
[373278642,1752927066433,-151.0,0.00019516,2]
[373278644,1752927066444,-151.0,0.00019516,2]
[373278646,1752927066455,-151.0,0.00019516,2]
[373278647,1752927066465,-151.0,0.00019516,2]
[373278649,1752927066475,-151.0,0.00019516,2]
[373278651,1752927066485,-170.630349,0.00019516,2]
[373278653,1752927066495,-170.630349,0.00019516,2]
[373278656,1752927066505,-151.0,0.00019516,2]
[373278658,1752927066515,-7738.92333423,0.00019568,2]
[373278659,1752927066525,-500.0,0.00019573,2]
[373278661,1752927066535,-150.0,0.00019586,4]
[373278662,1752927066545,-1000.0,0.00019592,2]
[373278663,1752927066555,-482.69288722,0.00019615,2]
[373278664,1752927066566,-150.0,0.00019615,2]
[373278665,1752927066576,-500.0,0.00019615,2]
[373278666,1752927066590,-500.0,0.00019615,2]
[373278667,1752927066600,-388.3591334,0.00019616,2]
[373278668,1752927066610,-480.0,0.00019616,2]
[373278669,1752927066620,-480.0,0.00019616,2]
[373278670,1752927066630,-480.0,0.00019616,2]
[373278671,1752927066640,-480.0,0.00019616,2]
[373278672,1752927066651,-480.0,0.00019616,2]
[373278673,1752927066661,-480.0,0.00019616,2]
[373278674,1752927066672,-480.0,0.00019616,2]
[373278675,1752927066681,-480.0,0.00019616,2]
[373278676,1752927066691,-196.83,0.00019616,2]
[373278677,1752927066700,-480.0,0.00019616,2]
[373278678,1752927066711,-352.60605638,0.00019616,2]
[373278680,1752927066721,-480.0,0.00019616,2]
[373278682,1752927066730,-480.0,0.00019616,2]
[373278684,1752927066740,-491.25,0.00019616,2]
[373278685,1752927066750,-480.0,0.00019616,2]
[373278687,1752927066760,-480.0,0.00019616,2]
[373278689,1752927066770,-180.33,0.00019616,2]
[373278691,1752927066779,-480.0,0.00019616,2]
[373278693,1752927066789,-480.0,0.00019616,2]
[373278695,1752927066798,-480.0,0.00019616,2]
[373278697,1752927066808,-480.0,0.00019616,2]
[373278699,1752927066818,-359.55289509,0.00019616,2]
[373278701,1752927066827,-480.0,0.00019616,2]
[373278703,1752927066837,-480.0,0.00019616,2]
[373278705,1752927066846,-527.7,0.00019616,2]
[373278708,1752927066856,-443.89,0.00019616,2]
[373278710,1752927066866,-480.0,0.00019616,2]
[373278712,1752927066876,-510.82,0.00019616,2]
[373278714,1752927066886,-480.0,0.00019616,2]
[373278716,1752927066896,-385.5,0.00019616,2]
[373278718,1752927066906,-480.0,0.00019616,2]
[373278719,1752927066915,-480.0,0.00019616,2]
[373278721,1752927066925,-480.0,0.00019616,2]
[373278724,1752927066935,-480.0,0.00019616,2]
[373278726,1752927066945,-480.0,0.00019616,2]
[373278728,1752927066956,-480.0,0.00019616,2]
[373278730,1752927066966,-480.0,0.00019616,2]
[373278732,1752927066976,-480.0,0.00019616,2]
[373278734,1752927066987,-480.0,0.00019616,2]
[373278736,1752927066997,-492.22,0.00019616,2]
[373278738,1752927067007,-402.38139375,0.00019616,2]
[373278740,1752927067017,-602.88,0.00019616,2]
[373278742,1752927067027,-480.0,0.00019616,2]
[373278744,1752927067037,-425.26036578,0.00019616,2]
[373278746,1752927067047,-614.31,0.00019616,2]
[373278748,1752927067057,-480.0,0.00019616,2]
[373278750,1752927067067,-380.0,0.00019616,2]
[373278752,1752927067078,-480.0,0.00019616,2]
[373278754,1752927067087,-480.0,0.00019616,2]
[373278756,1752927067097,-480.0,0.00019616,2]
[373278758,1752927067107,-345.54810697,0.00019616,2]
[373278760,1752927067117,-480.0,0.00019616,2]
[373278762,1752927067127,-480.0,0.00019616,2]
[373278765,1752927067137,-340.0,0.00019616,2]
[373278767,1752927067148,-564.73,0.00019616,2]
[373278769,1752927067158,-480.0,0.00019616,2]
[373278770,1752927067168,-480.16,0.00019616,2]
[373278772,1752927067179,-285.80690221,0.00019616,2]
[373278774,1752927067189,-330.32,0.00019616,2]
[373278777,1752927067199,-196.66,0.00019616,2]
[373278779,1752927067211,-611.91,0.00019616,2]
[373278781,1752927067221,-480.0,0.00019616,2]
[373278783,1752927067230,-480.0,0.00019616,2]
[373278785,1752927067240,-480.0,0.00019616,2]
[373278787,1752927067250,-480.0,0.00019616,2]
[373278789,1752927067260,-159.485168,0.00019616,2]
[373278791,1752927067269,-340.0,0.00019616,2]
[373278793,1752927067279,-159.485168,0.00019616,2]
[373278795,1752927067290,-480.0,0.00019616,2]
[373278797,1752927067299,-480.0,0.00019616,2]
[373278799,1752927067309,-497.32,0.00019616,2]
[373278801,1752927067320,-480.0,0.00019616,2]
[373278825,1752927067546,-480.0,0.00019616,2]
[373278827,1752927067556,-480.0,0.00019616,2]
[373278830,1752927067565,-480.0,0.00019616,2]
[373278832,1752927067578,-480.0,0.00019616,2]
[373278834,1752927067590,-480.0,0.00019616,2]
[373278836,1752927067600,-480.0,0.00019616,2]
[373278838,1752927067610,-480.0,0.00019616,2]
[373278840,1752927067622,-381.6,0.00019616,2]
[373278842,1752927067632,-480.0,0.00019616,2]
[373278844,1752927067640,-151.0,0.00019616,2]
[373278846,1752927067651,-290.74751634,0.00019616,2]
[373278848,1752927067664,-175.86,0.00019616,2]
[373278850,1752927067685,-151.0,0.00019616,2]
[373278852,1752927067707,-480.0,0.00019616,2]
[373278854,1752927067731,-480.0,0.00019616,2]
[373278856,1752927067754,-480.0,0.00019616,2]
[373278858,1752927067777,-480.0,0.00019616,2]
[373278860,1752927067799,-480.0,0.00019616,2]
[373278862,1752927067820,-480.0,0.00019616,2]
[373278864,1752927067841,-480.0,0.00019616,2]
[373278866,1752927067863,-480.0,0.00019616,2]
[373278868,1752927067879,-151.0,0.00019616,2]
[373278870,1752927067889,-572.13,0.00019616,2]
[373278872,1752927067899,-480.0,0.00019616,2]
[373278874,1752927067908,-187.06,0.00019616,2]
[373278876,1752927067918,-480.0,0.00019616,2]
[373278878,1752927067927,-480.0,0.00019616,2]
[373278880,1752927067937,-528.36,0.00019616,2]
[373278882,1752927067946,-329.00727408,0.00019616,2]
[373278884,1752927067957,-480.0,0.00019616,2]
[373278886,1752927067966,-480.0,0.00019616,2]
[373278888,1752927067975,-480.0,0.00019616,2]
[373278890,1752927067985,-480.0,0.00019616,2]
[373278892,1752927067995,-271.38,0.00019616,2]
[373278894,1752927068004,-480.0,0.00019616,2]
[373278896,1752927068013,-480.0,0.00019616,2]
[373278898,1752927068022,-334.54,0.00019616,2]
[373278900,1752927068032,-369.32,0.00019616,2]
[373278902,1752927068042,-259.50272673,0.00019616,2]
[373278904,1752927068051,-380.0,0.00019616,2]
[373278905,1752927068061,-480.0,0.00019616,2]
[373278907,1752927068070,-480.0,0.00019616,2]
[373278909,1752927068079,-480.0,0.00019616,2]
[373278911,1752927068088,-480.0,0.00019616,2]
[373278913,1752927068097,-244.36,0.00019616,2]
[373278915,1752927068106,-480.0,0.00019616,2]
[373278917,1752927068115,-509.18,0.00019616,2]
[373278919,1752927068125,-480.0,0.00019616,2]
[373278921,1752927068135,-480.0,0.00019616,2]
[373278923,1752927068145,-1272.92,0.00019616,2]
[373278925,1752927068155,-480.0,0.00019616,2]
[373278927,1752927068165,-480.0,0.00019616,2]
[373278929,1752927068174,-400.0,0.00019616,2]
[373278931,1752927068184,-480.0,0.00019616,2]
[373278933,1752927068194,-632.75,0.00019616,2]
[373278935,1752927068204,-480.0,0.00019616,2]
[373278937,1752927068214,-480.0,0.00019616,2]
[373278939,1752927068223,-632.62,0.00019616,2]
[373278941,1752927068233,-400.0,0.00019616,2]
[373278943,1752927068243,-480.0,0.00019616,2]
[373278945,1752927068252,-480.0,0.00019616,2]
[373278947,1752927068261,-458.67,0.00019616,2]
[373278949,1752927068270,-400.0,0.00019616,2]
[373278950,1752927068279,-151.0,0.00019616,2]
[373278951,1752927068288,-480.0,0.00019616,2]
[373278952,1752927068298,-480.0,0.00019616,2]
[373278953,1752927068307,-679.94,0.00019616,2]
[373278954,1752927068316,-480.0,0.00019616,2]
[373278955,1752927068326,-480.0,0.00019616,2]
[373278956,1752927068335,-480.0,0.00019616,2]
[373278957,1752927068344,-267.859334,0.00019616,2]
[373278958,1752927068353,-1585.57,0.00019616,2]
[373278959,1752927068363,-480.0,0.00019616,2]
[373278960,1752927068372,-152.721279,0.00019616,2]
[373278962,1752927068382,-480.0,0.00019616,2]
[373278964,1752927068392,-480.0,0.00019616,2]
[373278966,1752927068401,-480.0,0.00019616,2]
[373278968,1752927068410,-503.15,0.00019616,2]
[373278969,1752927068420,-480.0,0.00019616,2]
[373278970,1752927068430,-480.0,0.00019616,2]
[373278971,1752927068439,-480.0,0.00019616,2]
[373278972,1752927068449,-571.95,0.00019616,2]
[373278973,1752927068458,-581.29,0.00019616,2]
[373278974,1752927068468,-480.0,0.00019616,2]
[373278975,1752927068478,-480.0,0.00019616,2]
[373278976,1752927068487,-400.0,0.00019616,2]
[373278977,1752927068497,-480.0,0.00019616,2]
[373278978,1752927068506,-633.45,0.00019616,2]
[373278979,1752927068516,-490.15,0.00019616,2]
[373278980,1752927068526,-480.0,0.00019616,2]
[373278981,1752927068535,-381.52979534,0.00019616,2]
[373278982,1752927068545,-480.0,0.00019616,2]
[373278983,1752927068555,-571.94,0.00019616,2]
[373278984,1752927068564,-1050.85,0.00019616,2]
[373278985,1752927068574,-480.0,0.00019616,2]
[373278986,1752927068585,-480.0,0.00019616,2]
[373278987,1752927068595,-151.0,0.00019616,2]
[373278988,1752927068605,-1036.910079,0.00019616,2]
[373278989,1752927068615,-151.0,0.00019616,2]
[373278990,1752927068626,-1313.33,0.00019616,2]
[373278991,1752927068636,-480.0,0.00019616,2]
[373278992,1752927068645,-480.0,0.00019616,2]
[373278993,1752927068657,-480.0,0.00019616,2]
[373278994,1752927068666,-480.0,0.00019616,2]
[373278995,1752927068675,-870.226778,0.00019616,2]
[373278996,1752927068685,-480.0,0.00019616,2]
[373278997,1752927068694,-900.893639,0.00019616,2]
[373278999,1752927068704,-1874.03,0.00019616,2]
[373279001,1752927068714,-480.0,0.00019616,2]
[373279003,1752927068724,-824.64,0.00019616,2]
[373279004,1752927068733,-380.0,0.00019616,2]
[373279006,1752927068742,-480.0,0.00019616,2]
[373279008,1752927068752,-502.1,0.00019616,2]
[373279010,1752927068761,-1726.56,0.00019616,2]
[373279012,1752927068770,-480.0,0.00019616,2]
[373279014,1752927068780,-203.34,0.00019616,2]
[373279016,1752927068789,-480.0,0.00019616,2]
[373279018,1752927068798,-480.0,0.00019616,2]
[373279020,1752927068807,-400.0,0.00019616,2]
[373279022,1752927068816,-480.0,0.00019616,2]
[373279024,1752927068825,-3664.0,0.00019616,2]
[373279026,1752927068835,-365.73,0.00019616,2]
[373279028,1752927068845,-622.62,0.00019616,2]
[373279030,1752927068854,-480.0,0.00019616,2]
[373279031,1752927068863,-480.0,0.00019616,2]
[373279033,1752927068872,-480.0,0.00019616,2]
[373279035,1752927068881,-480.0,0.00019616,2]
[373279037,1752927068891,-607.67,0.00019616,2]
[373279039,1752927068900,-480.0,0.00019616,2]
[373279041,1752927068908,-246.91248978,0.00019616,2]
[373279043,1752927068918,-151.411604,0.00019616,2]
[373279045,1752927068928,-480.0,0.00019616,2]
[373279047,1752927068937,-480.0,0.00019616,2]
[373279049,1752927068946,-480.0,0.00019616,2]
[373279051,1752927068955,-284.28,0.00019616,2]
[373279053,1752927068966,-622.7,0.00019616,2]
[373279055,1752927068976,-759.29,0.00019616,2]
[373279057,1752927068986,-480.0,0.00019616,2]
[373279059,1752927068996,-1312.07,0.00019616,2]
[373279061,1752927069006,-292.74781507,0.00019616,2]
[373279064,1752927069025,-749.57218493,0.00019616,2]
[373279066,1752927069034,-1939.98,0.00019616,2]
[373279068,1752927069043,-480.0,0.00019616,2]
[373279070,1752927069053,-516.59,0.00019616,2]
[373279072,1752927069062,-644.324241,0.00019616,2]
[373279074,1752927069071,-480.0,0.00019616,2]
[373279076,1752927069080,-480.0,0.00019616,2]
[373279078,1752927069089,-611.66,0.00019616,2]
[373279080,1752927069099,-151.0,0.00019616,2]
[373279082,1752927069108,-883.72,0.00019616,2]
[373279083,1752927069117,-644.324241,0.00019616,2]
[373279085,1752927069127,-480.0,0.00019616,2]
[373279087,1752927069136,-151.0,0.00019616,2]
[373279089,1752927069145,-480.0,0.00019616,2]
[373279091,1752927069154,-1113.11,0.00019616,2]
[373279093,1752927069164,-624.99,0.00019616,2]
[373279095,1752927069173,-480.0,0.00019616,2]
[373279097,1752927069183,-1761.18,0.00019616,2]
[373279099,1752927069193,-480.0,0.00019616,2]
[373279101,1752927069203,-480.0,0.00019616,2]
[373279103,1752927069214,-480.0,0.00019616,2]
[373279105,1752927069223,-249.28,0.00019616,2]
[373279107,1752927069232,-480.0,0.00019616,2]
[373279109,1752927069241,-671.88,0.00019616,2]
[373279111,1752927069251,-252.69,0.00019616,2]
[373279113,1752927069260,-638.9,0.00019616,2]
[373279115,1752927069269,-483.054661,0.00019616,2]
[373279117,1752927069279,-480.0,0.00019616,2]
[373279119,1752927069288,-808.38,0.00019616,2]
[373279121,1752927069297,-480.0,0.00019616,2]
[373279123,1752927069307,-151.0,0.00019616,2]
[373279125,1752927069316,-480.0,0.00019616,2]
[373279127,1752927069327,-483.054661,0.00019616,2]
[373279129,1752927069336,-480.0,0.00019616,2]
[373279131,1752927069346,-587.14,0.00019616,2]
[373279133,1752927069355,-480.0,0.00019616,2]
[373279135,1752927069364,-432.3,0.00019616,2]
[373279137,1752927069373,-480.0,0.00019616,2]
[373279139,1752927069383,-480.0,0.00019616,2]
[373279141,1752927069392,-480.0,0.00019616,2]
[373279143,1752927069401,-480.0,0.00019616,2]
[373279145,1752927069411,-480.0,0.00019616,2]
[373279147,1752927069420,-480.0,0.00019616,2]
[373279149,1752927069429,-2730.74,0.00019616,2]
[373279151,1752927069439,-480.0,0.00019616,2]
[373279153,1752927069448,-480.0,0.00019616,2]
[373279155,1752927069460,-480.0,0.00019616,2]
[373279157,1752927069469,-480.0,0.00019616,2]
[373279159,1752927069479,-480.0,0.00019616,2]
[373279161,1752927069488,-480.0,0.00019616,2]
[373279163,1752927069498,-151.0,0.00019616,2]
[373279165,1752927069508,-480.0,0.00019616,2]
[373279167,1752927069518,-480.0,0.00019616,2]
[373279170,1752927069527,-614.52,0.00019616,2]
[373279171,1752927069537,-154.067534,0.00019616,2]
[373279173,1752927069546,-480.0,0.00019616,2]
[373279176,1752927069555,-716.69,0.00019616,2]
[373279178,1752927069565,-480.0,0.00019616,2]
[373279179,1752927069576,-480.0,0.00019616,2]
[373279182,1752927069587,-526.79,0.00019616,2]
[373279183,1752927069596,-2050.61,0.00019616,2]
[373279186,1752927069607,-480.0,0.00019616,2]
[373279187,1752927069616,-169.65,0.00019616,2]
[373279190,1752927069627,-654.07,0.00019616,2]
[373279192,1752927069636,-480.0,0.00019616,2]
[373279194,1752927069646,-1300.36,0.00019616,2]
[373279196,1752927069657,-696.21,0.00019616,2]
[373279198,1752927069666,-1273.72,0.00019616,2]
[373279200,1752927069676,-480.0,0.00019616,2]
[373279202,1752927069686,-532.37,0.00019616,2]
[373279204,1752927069695,-241.07873,0.00019616,2]
[373279206,1752927069705,-480.0,0.00019616,2]
[373279208,1752927069715,-8406.08,0.00019616,2]
[373279210,1752927069724,-241.07873,0.00019616,2]
[373279212,1752927069738,-480.0,0.00019616,2]
[373279215,1752927069754,-480.0,0.00019616,2]
[373279217,1752927069769,-3098.53,0.00019616,2]
[373279219,1752927069781,-625.82,0.00019616,2]
[373279221,1752927069795,-480.0,0.00019616,2]
[373279223,1752927069809,-779.14,0.00019616,2]
[373279224,1752927069824,-151.0,0.00019616,2]
[373279225,1752927069839,-480.0,0.00019616,2]
[373279227,1752927069853,-480.0,0.00019616,2]
[373279229,1752927069866,-480.0,0.00019616,2]
[373279231,1752927069877,-480.0,0.00019616,2]
[373279234,1752927069891,-480.0,0.00019616,2]
[373279236,1752927069905,-480.0,0.00019616,2]
[373279238,1752927069918,-480.0,0.00019616,2]
[373279241,1752927069933,-480.0,0.00019616,2]
[373279242,1752927069947,-480.0,0.00019616,2]
[373279245,1752927069961,-151.0,0.00019616,2]
[373279247,1752927069975,-480.0,0.00019616,2]
[373279250,1752927069989,-480.0,0.00019616,2]
[373279251,1752927070002,-480.0,0.00019616,2]
[373279252,1752927070016,-4536.51,0.00019616,2]
[373279253,1752927070029,-482.89,0.00019616,2]
[373279254,1752927070044,-480.0,0.00019616,2]
[373279255,1752927070059,-620.34,0.00019616,2]
[373279256,1752927070071,-480.0,0.00019616,2]
[373279258,1752927070084,-480.0,0.00019616,2]
[373279260,1752927070095,-1944.15,0.00019616,2]
[373279263,1752927070106,-480.0,0.00019616,2]
[373279265,1752927070123,-625.37,0.00019616,2]
[373279268,1752927070136,-480.0,0.00019616,2]
[373279270,1752927070146,-480.0,0.00019616,2]
[373279272,1752927070157,-480.0,0.00019616,2]
[373279274,1752927070170,-996.66,0.00019616,2]
[373279277,1752927070184,-480.0,0.00019616,2]
[373279279,1752927070195,-480.0,0.00019616,2]
[373279281,1752927070208,-200.94,0.00019616,2]
[373279283,1752927070219,-480.0,0.00019616,2]
[373279285,1752927070231,-7262.97,0.00019616,2]
[373279288,1752927070243,-480.0,0.00019616,2]
[373279291,1752927070259,-480.0,0.00019616,2]
[373279293,1752927070272,-480.0,0.00019616,2]
[373279295,1752927070283,-480.0,0.00019616,2]
[373279297,1752927070295,-480.0,0.00019616,2]
[373279300,1752927070307,-814.82,0.00019616,2]
[373279302,1752927070319,-480.0,0.00019616,2]
[373279304,1752927070331,-151.0,0.00019616,2]
[373279306,1752927070343,-814.36,0.00019616,2]
[373279307,1752927070356,-480.0,0.00019616,2]
[373279308,1752927070368,-480.0,0.00019616,2]
[373279309,1752927070380,-495.52,0.00019616,2]
[373279310,1752927070392,-861.88,0.00019616,2]
[373279311,1752927070405,-480.0,0.00019616,2]
[373279312,1752927070417,-505.38,0.00019616,2]
[373279313,1752927070429,-151.0,0.00019616,2]
[373279314,1752927070441,-480.47,0.00019616,2]
[373279315,1752927070453,-480.0,0.00019616,2]
[373279316,1752927070467,-945.47,0.00019616,2]
[373279317,1752927070483,-553.5,0.00019616,2]
[373279318,1752927070507,-480.0,0.00019616,2]
[373279319,1752927070530,-480.0,0.00019616,2]
[373279320,1752927070553,-480.0,0.00019616,2]
[373279321,1752927070576,-480.0,0.00019616,2]
[373279322,1752927070601,-519.08,0.00019616,2]
[373279323,1752927070624,-569.84,0.00019616,2]
[373279324,1752927070648,-480.0,0.00019616,2]
[373279325,1752927070673,-150.0,0.00019633,4]
[373279326,1752927070697,-715.65,0.00019641,2]
[373279327,1752927070718,-500.0,0.00019666,2]
[373279328,1752927070730,-205.86,0.00019686,2]
[373279329,1752927070742,-150.0,0.00019696,4]
[373279330,1752927070755,-187.72,0.00019703,2]
[373279331,1752927070768,-5069.07706645,0.00019705,2]
[373279332,1752927070779,-5158.87338134,0.00019705,2]
[373279333,1752927070791,-500.0,0.00019725,2]
[373279334,1752927070803,-500.0,0.00019725,2]
[373279335,1752927070815,-500.0,0.00019725,2]
[373279336,1752927070826,-203.437702,0.00019726,2]
[373279337,1752927070838,-480.0,0.00019726,2]
[373279338,1752927070849,-367.11,0.00019726,2]
[373279339,1752927070861,-480.0,0.00019726,2]
[373279340,1752927070872,-340.0,0.00019726,2]
[373279341,1752927070883,-147.88749102,0.00019726,2]
[373279342,1752927070900,-332.11250898,0.00019726,2]
[373279343,1752927070912,-360.0,0.00019726,2]
[373279344,1752927070923,-480.0,0.00019726,2]
[373279345,1752927070935,-480.0,0.00019726,2]
[373279346,1752927070946,-333.72841725,0.00019726,2]
[373279347,1752927070958,-480.0,0.00019726,2]
[373279348,1752927070969,-491.25,0.00019726,2]
[373279349,1752927070981,-480.0,0.00019726,2]
[373279350,1752927070993,-480.0,0.00019726,2]
[373279351,1752927071005,-480.0,0.00019726,2]
[373279352,1752927071018,-480.0,0.00019726,2]